fUSD/lending_fUSD_20250612
["ID","MTS","AMOUNT","RATE_DAILY","PERIOD"]
[365478549,1749697852136,-301.30497634,0.00019178,2]
[365478550,1749697852146,-468.48445444,0.00019178,2]
[365478551,1749697852156,-151.0,0.00019178,2]
[365478552,1749697852165,-152.116388,0.00019178,2]
[365478553,1749697852175,-490.0,0.00019178,2]
[365478554,1749697852184,-6230.49,0.00019178,2]
[365478555,1749697852193,-1137.56,0.00019178,2]
[365478556,1749697852203,-490.0,0.00019178,2]
[365478557,1749697852212,-490.76,0.00019178,2]
[365478558,1749697852221,-480.0,0.00019178,2]
[365478559,1749697852230,-469.93745645,0.00019178,2]
[365478560,1749697852239,-920.19,0.00019178,2]
[365478561,1749697852249,-499.35992334,0.00019178,2]
[365478562,1749697852258,-481.47938167,0.00019178,2]
[365478563,1749697852268,-2370.36,0.00019178,2]
[365478564,1749697852277,-493.35983585,0.00019178,2]
[365478565,1749697852287,-536.04,0.00019178,2]
[365478566,1749697852296,-151.0,0.00019178,2]
[365478567,1749697852306,-151.0,0.00019178,2]
[365478568,1749697852315,-480.01083015,0.00019178,2]
[365478569,1749697852325,-232.30646336,0.00019178,2]
[365478570,1749697852334,-3326.1,0.00019178,2]
[365478571,1749697852343,-495.50383521,0.00019178,2]
[365478572,1749697852352,-490.0,0.00019178,2]
[365478573,1749697852361,-490.0,0.00019178,2]
[365478574,1749697852371,-490.0,0.00019178,2]
[365478575,1749697852380,-490.0,0.00019178,2]
[365478576,1749697852389,-1850.87,0.00019178,2]
[365478577,1749697852399,-490.0,0.00019178,2]
[365478578,1749697852407,-723.64,0.00019178,2]
[365478579,1749697852416,-493.50175926,0.00019178,2]
[365478580,1749697852426,-490.0,0.00019178,2]
[365478581,1749697852435,-362.1895546,0.00019178,2]
[365478582,1749697852444,-492.0483466,0.00019178,2]
[365478583,1749697852453,-490.0,0.00019178,2]
[365478584,1749697852462,-490.0,0.00019178,2]
[365478585,1749697852472,-467.00031382,0.00019178,2]
[365478586,1749697852481,-490.0,0.00019178,2]
[365478587,1749697852490,-490.0,0.00019178,2]
[365478588,1749697852499,-490.0,0.00019178,2]
[365478589,1749697852508,-4443.61,0.00019178,2]
[365478590,1749697852518,-500.0,0.00019178,2]
[365478591,1749697852527,-490.0,0.00019178,2]
[365478592,1749697852536,-500.0,0.00019178,2]
[365478593,1749697852547,-490.0,0.00019178,2]
[365478594,1749697852556,-500.0,0.00019178,2]
[365478595,1749697852565,-151.0,0.00019178,2]
[365478596,1749697852574,-4135.52,0.00019178,2]
[365478597,1749697852583,-151.0,0.00019178,2]
[365478598,1749697852592,-476.60664801,0.00019178,2]
[365478599,1749697852601,-1323.06,0.00019178,2]
[365478600,1749697852611,-151.0,0.00019178,2]
[365478601,1749697852620,-490.0,0.00019178,2]
[365478602,1749697852630,-151.0,0.00019178,2]
[365478603,1749697852639,-490.0,0.00019178,2]
[365478604,1749697852648,-495.74948769,0.00019178,2]
[365478605,1749697852657,-625.65,0.00019178,2]
[365478606,1749697852667,-2647.56,0.00019178,2]
[365478607,1749697852676,-490.00420981,0.00019178,2]
[365478608,1749697852686,-6545.19,0.00019178,2]
[365478609,1749697852695,-490.0,0.00019178,2]
[365478610,1749697852704,-151.0,0.00019178,2]
[365478611,1749697852714,-151.0,0.00019178,2]
[365478612,1749697852723,-151.0,0.00019178,2]
[365478613,1749697852732,-151.0,0.00019178,2]
[365478614,1749697852741,-600.36,0.00019178,2]
[365478615,1749697852751,-596.54,0.00019178,2]
[365478616,1749697852760,-490.0,0.00019178,2]
[365478617,1749697852770,-490.0,0.00019178,2]
[365478618,1749697852779,-490.0,0.00019178,2]
[365478619,1749697852788,-490.0,0.00019178,2]
[365478620,1749697852798,-550.29,0.00019178,2]
[365478621,1749697852808,-432.76040881,0.00019178,2]
[365478622,1749697852818,-490.0,0.00019178,2]
[365478623,1749697852828,-490.0,0.00019178,2]
[365478624,1749697852838,-594.77,0.00019178,2]
[365478625,1749697852847,-2763.02,0.00019178,2]
[365478626,1749697852857,-855.03,0.00019178,2]
[365478627,1749697852866,-490.55445655,0.00019178,2]
[365478628,1749697852876,-682.55,0.00019178,2]
[365478629,1749697852887,-492.9176389,0.00019178,2]
[365478630,1749697852896,-850.25,0.00019178,2]
[365478631,1749697852907,-490.0,0.00019178,2]
[365478632,1749697852919,-490.0,0.00019178,2]
[365478633,1749697852929,-490.0,0.00019178,2]
[365478634,1749697852938,-495.71746944,0.00019178,2]
[365478635,1749697852949,-490.0,0.00019178,2]
[365478636,1749697852959,-1093.0,0.00019178,2]
[365478637,1749697852969,-490.0,0.00019178,2]
[365478638,1749697852978,-490.64621801,0.00019178,2]
[365478639,1749697852988,-619.93,0.00019178,2]
[365478640,1749697852998,-490.0,0.00019178,2]
[365478641,1749697853008,-490.0,0.00019178,2]
[365478642,1749697853018,-490.0,0.00019178,2]
[365478643,1749697853027,-914.46,0.00019178,2]
[365478644,1749697853037,-4391.98,0.00019178,2]
[365478645,1749697853047,-14227.09,0.00019178,2]
[365478646,1749697853057,-490.0,0.00019178,2]
[365478647,1749697853067,-492.56841519,0.00019178,2]
[365478648,1749697853077,-434.78889201,0.00019178,2]
[365478649,1749697853087,-2901.49,0.00019178,2]
[365478650,1749697853096,-490.0,0.00019178,2]
[365478651,1749697853106,-495.51932185,0.00019178,2]
[365478652,1749697853115,-2534.03,0.00019178,2]
[365478653,1749697853124,-499.25,0.00019178,2]
[365478654,1749697853134,-2534.03,0.00019178,2]
[365478655,1749697853143,-2534.03,0.00019178,2]
[365478656,1749697853152,-2000.13,0.00019178,2]
[365478657,1749697853162,-467.49054781,0.00019178,2]
[365478658,1749697853171,-491.87404972,0.00019178,2]
[365478659,1749697853180,-2534.03,0.00019178,2]
[365478660,1749697853189,-434.05224816,0.00019178,2]
[365478661,1749697853199,-18802.41,0.00019178,2]
[365478662,1749697853208,-490.0,0.00019178,2]
[365478663,1749697853219,-490.0,0.00019178,2]
[365478664,1749697853229,-1002.38,0.00019178,2]
[365478665,1749697853238,-499.76218544,0.00019178,2]
[365478666,1749697853248,-490.0,0.00019178,2]
[365478667,1749697853258,-479.70633187,0.00019178,2]
[365478668,1749697853267,-680.43,0.00019178,2]
[365478669,1749697853277,-492.45688571,0.00019178,2]
[365478670,1749697853287,-490.0,0.00019178,2]
[365478671,1749697853297,-485.17331633,0.00019178,2]
[365478672,1749697853307,-500.0,0.00019178,2]
[365478673,1749697853316,-500.0,0.00019178,2]
[365478674,1749697853325,-500.0,0.00019178,2]
[365478675,1749697853334,-500.0,0.00019178,2]
[365478676,1749697853343,-500.0772362,0.00019178,2]
[365478677,1749697853352,-204.98045576,0.00019178,2]
[365478678,1749697853361,-2346.62,0.00019178,2]
[365478679,1749697853370,-484.83834547,0.00019178,2]
[365478680,1749697853380,-2480.89,0.00019178,2]
[365478681,1749697853389,-490.0,0.00019178,2]
[365478682,1749697853399,-482.77237458,0.00019178,2]
[365478683,1749697853408,-490.0,0.00019178,2]
[365478684,1749697853417,-490.0,0.00019178,2]
[365478685,1749697853427,-151.0,0.00019178,2]
[365478686,1749697853436,-151.0,0.00019178,2]
[365478687,1749697853445,-730.94,0.00019178,2]
[365478688,1749697853454,-433.06544636,0.00019178,2]
[365478689,1749697853463,-490.0,0.00019178,2]
[365478690,1749697853472,-480.71581254,0.00019178,2]
[365478691,1749697853481,-472.66087188,0.00019178,2]
[365478692,1749697853490,-2315.67,0.00019178,2]
[365478693,1749697853499,-494.87412327,0.00019178,2]
[365478694,1749697853509,-500.29474397,0.00019178,2]
[365478695,1749697853518,-490.0,0.00019178,2]
[365478696,1749697853528,-490.0,0.00019178,2]
[365478697,1749697853537,-205.85954715,0.00019178,2]
[365478698,1749697853549,-160.83627906,0.00019178,2]
[365478699,1749697853559,-151.0,0.00019178,2]
[365478700,1749697853568,-1798.54,0.00019178,2]
[365478701,1749697853577,-480.0,0.00019178,2]
[365478702,1749697853586,-1268.47,0.00019178,2]
[365478703,1749697853595,-490.0,0.00019178,2]
[365478704,1749697853605,-495.75703211,0.00019178,2]
[365478705,1749697853614,-151.0,0.00019178,2]
[365478706,1749697853623,-569.42356718,0.00019178,2]
[365478707,1749697853632,-490.0,0.00019178,2]
[365478708,1749697853641,-490.0,0.00019178,2]
[365478709,1749697853650,-5268.65,0.00019178,2]
[365478710,1749697853659,-1011.66,0.00019178,2]
[365478711,1749697853669,-2994.48,0.00019178,2]
[365478712,1749697853678,-490.0,0.00019178,2]
[365478713,1749697853687,-445.67761467,0.00019178,2]
[365478714,1749697853696,-497.92884543,0.00019178,2]
[365478715,1749697853705,-490.0,0.00019178,2]
[365478716,1749697853714,-490.0,0.00019178,2]
[365478717,1749697853724,-490.0,0.00019178,2]
[365478718,1749697853733,-764.44,0.00019178,2]
[365478719,1749697853742,-1061.59,0.00019178,2]
[365478720,1749697853751,-490.0,0.00019178,2]
[365478721,1749697853760,-490.0,0.00019178,2]
[365478722,1749697853769,-1242.69,0.00019178,2]
[365478723,1749697853778,-474.0,0.00019178,2]
[365478724,1749697853787,-482.58560213,0.00019178,2]
[365478725,1749697853798,-490.0,0.00019178,2]
[365478726,1749697853808,-4631.03,0.00019178,2]
[365478727,1749697853817,-779.04,0.00019178,2]
[365478728,1749697853827,-490.0,0.00019178,2]
[365478729,1749697853836,-1851.11,0.00019178,2]
[365478730,1749697853846,-490.0,0.00019178,2]
[365478731,1749697853855,-490.0,0.00019178,2]
[365478732,1749697853864,-3212.95,0.00019178,2]
[365478733,1749697853874,-1016.05460475,0.00019178,2]
[365478734,1749697853883,-1374.78,0.00019178,2]
[365478735,1749697853893,-500.17200281,0.00019178,2]
[365478736,1749697853905,-490.0,0.00019178,2]
[365478737,1749697853921,-490.0,0.00019178,2]
[365478738,1749697853930,-490.0,0.00019178,2]
[365478739,1749697853939,-480.0,0.00019178,2]
[365478740,1749697853950,-462.63109361,0.00019178,2]
[365478741,1749697853959,-5845.15,0.00019178,2]
[365478742,1749697853968,-1030.34,0.00019178,2]
[365478743,1749697853977,-490.0,0.00019178,2]
[365478744,1749697853987,-510.43,0.00019178,2]
[365478745,1749697853996,-490.0,0.00019178,2]
[365478746,1749697854005,-490.0,0.00019178,2]
[365478747,1749697854015,-1143.85,0.00019178,2]
[365478748,1749697854024,-294.72437243,0.00019178,2]
[365478749,1749697854034,-205.242892,0.00019178,2]
[365478750,1749697854044,-205.242892,0.00019178,2]
[365478751,1749697854053,-489.28166093,0.00019178,2]
[365478752,1749697854062,-151.0,0.00019178,2]
[365478753,1749697854072,-164.54,0.00019178,2]
[365478754,1749697854082,-160.177739,0.00019187,2]
[365478755,1749697854091,-239.671838,0.00019187,2]
[365478756,1749697854101,-239.671838,0.00019187,2]
[365478757,1749697854111,-190.03837873,0.00019187,2]
[365478758,1749697854120,-1000.0,0.000192,2]
[365478759,1749697854130,-300.0,0.000192,2]
[365478760,1749697854139,-1916.64783879,0.000192,2]
[365478761,1749697854148,-150.0,0.00019205,2]
[365478762,1749697854158,-150.0,0.00019205,2]
[365478763,1749697854167,-150.0,0.00019205,2]
[365478764,1749697854176,-150.43207046,0.00019205,2]
[365478765,1749697854185,-500.0,0.00019205,2]
[365478766,1749697854195,-150.0,0.00019205,2]
[365478767,1749697854204,-500.0,0.00019205,2]
[365478768,1749697854214,-500.0,0.00019205,2]
[365478769,1749697854224,-150.0,0.00019205,2]
[365478770,1749697854233,-251.779506,0.00019205,2]
[365478771,1749697854243,-500.0,0.00019205,2]
[365478772,1749697854252,-500.0,0.00019205,3]
[365478773,1749697854261,-202.25101604,0.00019205,2]
[365478774,1749697854271,-444.0,0.00019205,2]
[365478775,1749697854280,-2162.0,0.00019205,2]
[365478776,1749697854289,-150.0,0.00019205,2]
[365478777,1749697854299,-474.0,0.00019205,2]
[365478778,1749697854308,-206.71614975,0.0001921,2]
[365478779,1749697854317,-272.76742267,0.00019215,2]
[365478780,1749697854327,-1000.0,0.0001922,2]
[365478781,1749697854336,-151.0,0.00019221,2]
[365478782,1749697854345,-151.0,0.00019221,2]
[365478783,1749697854355,-151.0,0.00019221,2]
[365478784,1749697854364,-151.0,0.00019221,2]
[365478785,1749697854373,-9473.908763,0.00019221,2]
[365478786,1749697854382,-9473.908763,0.00019221,2]
[365478787,1749697854392,-151.0,0.00019221,2]
[365478788,1749697854402,-528.467945,0.00019221,2]
[365478789,1749697854411,-528.467945,0.00019221,2]
[365478790,1749697854421,-154.894479,0.00019221,2]
[365478791,1749697854430,-154.894479,0.00019221,2]
[365478792,1749697854439,-201.089157,0.00019221,2]
[365478793,1749697854448,-201.089157,0.00019221,2]
[365478794,1749697854458,-151.0,0.00019221,2]
[365478795,1749697854467,-151.0,0.00019221,2]
[365478796,1749697854476,-151.0,0.00019221,2]
[365478797,1749697854486,-474.214961,0.00019221,2]
[365478798,1749697854495,-474.214961,0.00019221,2]
[365478799,1749697854505,-179.650264,0.00019221,2]
[365478800,1749697854513,-179.650264,0.00019221,2]
[365478801,1749697854523,-151.0,0.00019221,2]
[365478802,1749697854533,-151.0,0.00019221,2]
[365478803,1749697854542,-180.729921,0.00019221,2]
[365478804,1749697854552,-180.729921,0.00019221,2]
[365478805,1749697854561,-161.77392948,0.00019225,2]
[365478806,1749697854571,-150.0,0.00019233,2]
[365478807,1749697854580,-492.48482668,0.00019233,2]
[365478808,1749697854589,-150.0,0.00019233,2]
[365478809,1749697854598,-620.38393698,0.00019233,2]
[365478810,1749697854607,-500.0,0.00019233,2]
[365478811,1749697854617,-249.73029672,0.00019233,2]
[365478812,1749697854627,-500.0,0.00019233,2]
[365478813,1749697854636,-500.0,0.00019233,3]
[365478814,1749697854646,-444.0,0.00019233,2]
[365478815,1749697854656,-2162.0,0.00019233,2]
[365478816,1749697854665,-266.63936158,0.00019233,2]
[365478817,1749697854674,-474.0,0.00019233,2]
[365478818,1749697854684,-448.081566,0.00019233,2]
[365478819,1749697854693,-448.081566,0.00019233,2]
[365478820,1749697854702,-151.0,0.00019233,2]
[365478821,1749697854711,-151.0,0.00019233,2]
[365478822,1749697854721,-156.984377,0.00019233,2]
[365478823,1749697854730,-500.0,0.00019238,2]
[365478824,1749697854740,-500.0,0.00019238,2]
[365478825,1749697854749,-151.0,0.00019239,2]
[365478826,1749697854759,-151.0,0.00019239,2]
[365478827,1749697854768,-151.0,0.00019239,2]
[365478828,1749697854777,-151.0,0.00019239,2]
[365478829,1749697854787,-151.0,0.00019239,2]
[365478830,1749697854797,-388.561724,0.00019239,2]
[365478831,1749697854806,-388.561724,0.00019239,2]
[365478832,1749697854816,-293.130945,0.00019239,2]
[365478833,1749697854826,-293.130945,0.00019239,2]
[365478834,1749697854836,-151.0,0.00019239,2]
[365478835,1749697854845,-151.0,0.00019239,2]
[365478836,1749697854855,-257.038167,0.00019239,2]
[365478837,1749697854865,-337.38622,0.00019239,2]
[365478838,1749697854875,-337.38622,0.00019239,2]
[365478839,1749697854884,-246.985685,0.00019239,2]
[365478840,1749697854894,-241.747191,0.00019239,2]
[365478841,1749697854906,-246.985685,0.00019239,2]
[365478842,1749697854916,-241.747191,0.00019239,2]
[365478843,1749697854925,-2139.864371,0.00019239,2]
[365478844,1749697854935,-2139.864371,0.00019239,2]
[365478845,1749697854944,-217.046769,0.00019239,2]
[365478846,1749697854957,-308.048,0.00019239,2]
[365478847,1749697854967,-308.048,0.00019239,2]
[365478848,1749697854977,-151.0,0.00019239,2]
[365478849,1749697854988,-280.331003,0.00019239,2]
[365478850,1749697854998,-251.159973,0.00019239,2]
[365478851,1749697855007,-251.159973,0.00019239,2]
[365478852,1749697855017,-407.650493,0.00019239,2]
[365478853,1749697855026,-407.650493,0.00019239,2]
[365478854,1749697855036,-151.0,0.00019239,2]
[365478855,1749697855047,-206.549342,0.00019239,2]
[365478856,1749697855057,-151.0,0.00019239,2]
[365478857,1749697855066,-151.0,0.00019239,2]
[365478858,1749697855076,-160.753343,0.00019239,2]
[365478859,1749697855085,-151.0,0.00019239,2]
[365478860,1749697855095,-151.0,0.00019239,2]
[365478861,1749697855104,-166.327603,0.00019239,2]
[365478862,1749697855114,-166.327603,0.00019239,2]
[365478863,1749697855124,-348.014195,0.00019239,2]
[365478864,1749697855134,-348.014195,0.00019239,2]
[365478865,1749697855143,-529.471891,0.00019239,2]
[365478866,1749697855152,-529.471891,0.00019239,2]
[365478867,1749697855161,-151.0,0.00019239,2]
[365478868,1749697855170,-287.56508,0.00019239,2]
[365478869,1749697855179,-287.56508,0.00019239,2]
[365478870,1749697855188,-2071.328488,0.00019239,2]
[365478871,1749697855198,-2071.328488,0.00019239,2]
[365478872,1749697855207,-151.0,0.00019239,2]
[365478873,1749697855216,-151.0,0.00019239,2]
[365478874,1749697855226,-691.238576,0.00019239,2]
[365478875,1749697855235,-691.238576,0.00019239,2]
[365478876,1749697855245,-151.0,0.00019239,2]
[365478877,1749697855255,-1620.83575761,0.00019239,2]
[365478878,1749697855265,-175.299832,0.00019241,2]
[365478879,1749697855275,-153.543629,0.00019243,2]
[365478880,1749697855284,-151.0,0.00019243,2]
[365478881,1749697855294,-151.0,0.00019243,2]
[365478882,1749697855304,-151.0,0.00019243,2]
[365478883,1749697855313,-151.0,0.00019243,2]
[365478884,1749697855323,-875.962955,0.00019243,2]
[365478885,1749697855332,-875.962955,0.00019243,2]
[365478886,1749697855341,-151.0,0.00019243,2]
[365478887,1749697855351,-255.744734,0.00019244,2]
[365478888,1749697855360,-255.744734,0.00019244,2]
[365478889,1749697855370,-206.71614975,0.00019245,2]
[365478890,1749697855379,-642.239,0.00019246,2]
[365478891,1749697855388,-559.642,0.00019246,2]
[365478892,1749697855397,-594.034,0.00019246,2]
[365478893,1749697855407,-949.169,0.00019246,2]
[365478894,1749697855416,-2036.403,0.00019246,2]
[365478895,1749697855425,-1321.421,0.00019246,2]
[365478896,1749697855435,-1673.0,0.00019246,2]
[365478897,1749697855444,-1162.285,0.00019246,2]
[365478898,1749697855453,-201.861,0.00019246,2]
[365478899,1749697855463,-4087.0,0.00019246,2]
[365478900,1749697855472,-7066.0,0.00019246,2]
[365478901,1749697855481,-853.0,0.00019246,2]
[365478902,1749697855491,-885.283,0.00019246,2]
[365478903,1749697855500,-963.608012,0.00019254,2]
[365478904,1749697855509,-963.608012,0.00019254,2]
[365478905,1749697855519,-200.0,0.0001926,2]
[365478906,1749697855529,-150.0,0.0001926,2]
[365478907,1749697855540,-500.0,0.0001926,2]
[365478908,1749697855549,-537.90711113,0.0001926,2]
[365478909,1749697855559,-500.0,0.0001926,3]
[365478910,1749697855569,-444.0,0.0001926,2]
[365478911,1749697855579,-2162.0,0.0001926,2]
[365478912,1749697855588,-474.0,0.0001926,2]
[365478913,1749697855598,-165.77063069,0.0001926,2]
[365478914,1749697855607,-151.0,0.00019271,2]
[365478915,1749697855617,-206.71614975,0.00019279,2]
[365478916,1749697855626,-152.99641781,0.00019284,2]
[365478917,1749697855636,-150.0,0.00019288,2]
[365478918,1749697855645,-500.0,0.00019288,2]
[365478919,1749697855655,-500.0,0.00019288,3]
[365478920,1749697855665,-444.0,0.00019288,2]
[365478921,1749697855675,-2162.0,0.00019288,2]
[365478922,1749697855685,-474.0,0.00019288,2]
[365478923,1749697855695,-500.0,0.00019288,2]
[365478924,1749697855705,-500.0,0.00019288,2]
[365478925,1749697855716,-500.0,0.00019288,2]
[365478926,1749697855726,-500.0,0.00019288,2]
[365478927,1749697855736,-500.0,0.00019288,2]
[365478928,1749697855747,-500.0,0.00019288,2]
[365478929,1749697855987,-500.0,0.00019288,2]
[365478930,1749697855998,-500.0,0.00019288,2]
[365478931,1749697856008,-500.0,0.00019288,2]
[365478932,1749697856018,-500.0,0.00019288,2]
[365478933,1749697856028,-500.0,0.00019288,2]
[365478934,1749697856038,-500.0,0.00019288,2]
[365478935,1749697856048,-500.0,0.00019288,2]
[365478936,1749697856058,-500.0,0.00019288,2]
[365478937,1749697856067,-500.0,0.00019288,2]
[365478938,1749697856078,-500.0,0.00019288,2]
[365478939,1749697856087,-500.0,0.00019288,2]
[365478940,1749697856097,-500.0,0.00019288,2]
[365478941,1749697856106,-500.0,0.00019288,2]
[365478942,1749697856116,-151.0,0.00019296,2]
[365478943,1749697856126,-151.0,0.00019296,2]
[365478944,1749697856135,-207.95420417,0.00019297,2]
[365478945,1749697856145,-1000.0,0.000193,2]
[365478946,1749697856155,-164.88,0.000193,4]
[365478947,1749697856164,-163.0,0.000193,4]
[365478948,1749697856174,-151.0,0.000193,2]
[365478949,1749697856184,-151.0,0.000193,2]
[365478950,1749697856194,-151.0,0.000193,2]
[365478951,1749697856203,-1916.64783879,0.000193,2]
[365478952,1749697856214,-205.242892,0.000193,2]
[365478953,1749697856224,-206.71614975,0.00019314,2]
[365478954,1749697856233,-182.43687986,0.00019315,2]
[365478955,1749697856243,-500.0,0.00019315,2]
[365478956,1749697856253,-500.0,0.00019315,3]
[365478957,1749697856262,-444.0,0.00019315,2]
[365478958,1749697856272,-2162.0,0.00019315,2]
[365478959,1749697856282,-474.0,0.00019315,2]
[365478960,1749697856291,-211.63248,0.00019315,2]
[365478961,1749697856301,-151.0,0.00019315,2]
[365478962,1749697856310,-151.0,0.00019315,2]
[365478963,1749697856319,-151.0,0.00019315,2]
[365478964,1749697856329,-151.0,0.00019315,2]
[365478965,1749697856338,-288.97814,0.00019315,2]
[365478966,1749697856348,-151.0,0.00019315,2]
[365478967,1749697856358,-151.0,0.00019315,2]
[365478968,1749697856368,-150.0,0.00019315,4]
[365478969,1749697856378,-150.43863816,0.00019315,4]
[365478970,1749697856387,-150.0,0.00019315,4]
[365478971,1749697856397,-150.0,0.00019315,4]
[365478972,1749697856406,-150.57999511,0.00019315,4]
[365478973,1749697856416,-150.0,0.00019315,4]
[365478974,1749697856426,-150.0,0.00019315,4]
[365478975,1749697856436,-150.0,0.00019315,4]
[365478976,1749697856446,-150.0,0.00019315,4]
[365478977,1749697856456,-150.0,0.00019315,4]
[365478978,1749697856466,-150.0,0.00019315,4]
[365478979,1749697856476,-150.0,0.00019315,4]
[365478980,1749697856485,-13858.28,0.0001933,2]
[365478981,1749697856496,-163.864531,0.0001933,2]
[365478982,1749697856506,-163.864531,0.0001933,2]
[365478983,1749697856516,-151.0,0.0001933,2]
[365478984,1749697856526,-151.0,0.0001933,2]
[365478985,1749697856535,-236.102719,0.0001933,2]
[365478986,1749697856545,-236.102719,0.0001933,2]
[365478987,1749697856555,-151.0,0.0001933,2]
[365478988,1749697856564,-151.0,0.0001933,2]
[365478989,1749697856574,-151.0,0.0001933,2]
[365478990,1749697856583,-151.0,0.0001933,2]
[365478991,1749697856593,-151.0,0.0001933,2]
[365478992,1749697856603,-151.0,0.0001933,2]
[365478993,1749697856612,-151.0,0.0001933,2]
[365478994,1749697856622,-151.0,0.0001933,2]
[365478995,1749697856632,-151.0,0.0001933,2]
[365478996,1749697856641,-151.0,0.0001933,2]
[365478997,1749697856651,-151.0,0.0001933,2]
[365478998,1749697856661,-414.987412,0.0001933,2]
[365478999,1749697856670,-414.987412,0.0001933,2]
[365479000,1749697856679,-151.0,0.0001933,2]
[365479001,1749697856689,-151.0,0.0001933,2]
[365479002,1749697856698,-151.0,0.0001933,2]
[365479003,1749697856708,-1339.323965,0.0001933,2]
[365479004,1749697856717,-1339.323965,0.0001933,2]
[365479005,1749697856727,-151.0,0.0001933,2]
[365479006,1749697856736,-151.0,0.0001933,2]
[365479007,1749697856747,-805.96608,0.0001933,2]
[365479008,1749697856756,-805.96608,0.0001933,2]
[365479009,1749697856765,-2422.530963,0.0001933,2]
[365479010,1749697856775,-2422.530963,0.0001933,2]
[365479011,1749697856785,-464.075523,0.0001933,2]
[365479012,1749697856794,-464.075523,0.0001933,2]
[365479013,1749697856804,-255.398782,0.0001933,2]
[365479014,1749697856815,-151.0,0.0001933,2]
[365479015,1749697856824,-255.398782,0.0001933,2]
[365479016,1749697856834,-265.622518,0.0001933,2]
[365479017,1749697856844,-265.622518,0.0001933,2]
[365479018,1749697856854,-238.086022,0.0001933,2]
[365479019,1749697856865,-238.086022,0.0001933,2]
[365479020,1749697857094,-334.56429,0.0001933,2]
[365479021,1749697857117,-334.56429,0.0001933,2]
[365479022,1749697857139,-500.0,0.0001933,2]
[365479023,1749697857162,-500.0,0.0001933,2]
[365479024,1749697857182,-505.0,0.0001933,2]
[365479025,1749697857192,-151.0,0.0001933,2]
[365479026,1749697857202,-151.0,0.0001933,2]
[365479027,1749697857213,-500.0,0.0001933,2]
[365479028,1749697857222,-500.0,0.0001933,2]
[365479029,1749697857232,-500.0,0.0001933,2]
[365479030,1749697857243,-500.0,0.0001933,2]
[365479031,1749697857253,-500.0,0.0001933,2]
[365479032,1749697857262,-500.0,0.0001933,2]
[365479033,1749697857272,-500.0,0.0001933,2]
[365479034,1749697857282,-514.0,0.0001933,2]
[365479035,1749697857294,-186.30545,0.0001933,2]
[365479036,1749697857303,-186.30545,0.0001933,2]
[365479037,1749697857313,-500.0,0.0001933,2]
[365479038,1749697857322,-205.631192,0.0001933,2]
[365479039,1749697857332,-500.0,0.0001933,2]
[365479040,1749697857342,-500.0,0.0001933,2]
[365479041,1749697857351,-500.0,0.0001933,2]
[365479042,1749697857361,-500.0,0.0001933,2]
[365479043,1749697857371,-500.0,0.0001933,2]
[365479044,1749697857380,-500.0,0.0001933,2]
[365479045,1749697857390,-500.0,0.0001933,2]
[365479046,1749697857399,-500.0,0.0001933,2]
[365479047,1749697857408,-500.0,0.0001933,2]
[365479048,1749697857418,-500.0,0.0001933,2]